[Event "December 12 Early 2023"]
[Site "https://www.chess.com"]
[Date "2023.12.12"]
[Round "5"]
[White "Antunez Soler, Luis"]
[Black "Pak, Yevgeniy"]
[Result "1-0"]
[Board "97"]
[TimeControl "180+1"]
[WhiteFideId "3513335"]
[BlackFideId "14201712"]
[WhiteElo "2618"]
[BlackElo "2459"]
[WhiteTeam "CUB"]
[BlackTeam "KAZ"]
[WhiteClock "0:00:14"]
[BlackClock "0:00:34"]

1. e4 {[%clk 0:03:00]}  e6 {[%clk 0:02:56]} 2. d4 {[%clk 0:03:00]}  d5 {[%clk 0:02:56]} 3. Nc3 {[%clk 0:03:01]}  Bb4 {[%clk 0:02:54]} 4. e5 {[%clk 0:03:01]}  c5 {[%clk 0:02:52]} 5. a3 {[%clk 0:03:02]}  Bxc3+ {[%clk 0:02:52]} 6. bxc3 {[%clk 0:03:03]}  Ne7 {[%clk 0:02:52]} 7. Nf3 {[%clk 0:03:02]}  Nbc6 {[%clk 0:02:50]} 8. h4 {[%clk 0:03:02]}  Qa5 {[%clk 0:02:44]} 9. Bd2 {[%clk 0:03:02]}  Qc7 {[%clk 0:02:42]} 10. h5 {[%clk 0:02:51]}  h6 {[%clk 0:02:41]} 11. Bd3 {[%clk 0:02:51]}  Bd7 {[%clk 0:02:37]} 12. O-O {[%clk 0:02:51]}  Na5 {[%clk 0:02:29]} 13. Re1 {[%clk 0:02:50]}  Nc4 {[%clk 0:02:19]} 14. Bc1 {[%clk 0:02:50]}  O-O-O {[%clk 0:02:13]} 15. a4 {[%clk 0:02:48]}  Be8 {[%clk 0:02:05]} 16. dxc5 {[%clk 0:02:45]}  Qxc5 {[%clk 0:02:06]} 17. Nd4 {[%clk 0:02:43]}  Nc6 {[%clk 0:02:04]} 18. Nb5 {[%clk 0:01:45]}  N6xe5 {[%clk 0:01:56]} 19. Bf4 {[%clk 0:01:35]}  Nc6 {[%clk 0:01:46]} 20. Bxc4 {[%clk 0:01:19]}  dxc4 {[%clk 0:01:47]} 21. Nd6+ {[%clk 0:01:17]}  Rxd6 {[%clk 0:01:43]} 22. Bxd6 {[%clk 0:01:16]}  Qf5 {[%clk 0:01:33]} 23. Bg3 {[%clk 0:01:14]}  f6 {[%clk 0:01:31]} 24. Qd6 {[%clk 0:01:06]}  e5 {[%clk 0:01:30]} 25. a5 {[%clk 0:01:06]}  a6 {[%clk 0:01:29]} 26. Rab1 {[%clk 0:00:45]}  Bxh5 {[%clk 0:01:22]} 27. Rxb7 {[%clk 0:00:40]}  Kxb7 {[%clk 0:01:18]} 28. Rb1+ {[%clk 0:00:39]}  Kc8 {[%clk 0:01:14]} 29. Qxc6+ {[%clk 0:00:39]}  Kd8 {[%clk 0:01:12]} 30. Qd6+ {[%clk 0:00:35]}  Ke8 {[%clk 0:01:09]} 31. Rb8+ {[%clk 0:00:31]}  Kf7 {[%clk 0:01:09]} 32. Rxh8 {[%clk 0:00:21]}  Kg6 {[%clk 0:00:56]} 33. Qd8 {[%clk 0:00:17]}  Qxc2 {[%clk 0:00:53]} 34. Rg8 {[%clk 0:00:17]}  Kh7 {[%clk 0:00:44]} 35. Qf8 {[%clk 0:00:15]}  Kg6 {[%clk 0:00:39]} 36. Qxg7+ {[%clk 0:00:13]}  Kf5 {[%clk 0:00:34]} 37. Qh7+ {[%clk 0:00:14]} 1-0

[Event "December 12 Early 2023"]
[Site "https://www.chess.com"]
[Date "2023.12.12"]
[Round "5"]
[White "NikaVolkov"]
[Black "Liu, Casper"]
[Result "1-0"]
[Board "99"]
[TimeControl "180+1"]
[BlackFideId "1454153"]
[WhiteElo "2606"]
[BlackElo "2456"]
[BlackTeam "DEN"]
[WhiteClock "0:01:29"]
[BlackClock "0:00:00"]

1. d4 {[%clk 0:02:54]}  f5 {[%clk 0:03:00]} 2. Nf3 {[%clk 0:02:54]}  Nf6 {[%clk 0:03:01]} 3. e3 {[%clk 0:02:54]}  e6 {[%clk 0:03:01]} 4. c4 {[%clk 0:02:55]}  g6 {[%clk 0:03:02]} 5. Nc3 {[%clk 0:02:55]}  Bg7 {[%clk 0:03:03]} 6. Bd3 {[%clk 0:02:56]}  O-O {[%clk 0:03:04]} 7. O-O {[%clk 0:02:57]}  d6 {[%clk 0:03:04]} 8. Qc2 {[%clk 0:02:54]}  Nc6 {[%clk 0:03:04]} 9. a3 {[%clk 0:02:55]}  e5 {[%clk 0:03:03]} 10. dxe5 {[%clk 0:02:55]}  dxe5 {[%clk 0:03:01]} 11. e4 {[%clk 0:02:55]}  Nd4 {[%clk 0:02:41]} 12. Nxd4 {[%clk 0:02:53]}  exd4 {[%clk 0:02:42]} 13. Nd5 {[%clk 0:02:53]}  Nxe4 {[%clk 0:02:42]} 14. Bxe4 {[%clk 0:02:51]}  fxe4 {[%clk 0:02:43]} 15. Qxe4 {[%clk 0:02:51]}  Kh8 {[%clk 0:02:34]} 16. Ne7 {[%clk 0:01:59]}  Re8 {[%clk 0:02:05]} 17. Bg5 {[%clk 0:01:59]}  Bf5 {[%clk 0:02:04]} 18. Qh4 {[%clk 0:01:48]}  Qd7 {[%clk 0:01:43]} 19. Rfe1 {[%clk 0:01:48]}  Rf8 {[%clk 0:01:06]} 20. h3 {[%clk 0:01:42]}  Rae8 {[%clk 0:00:58]} 21. Rad1 {[%clk 0:01:37]}  Qd6 {[%clk 0:00:20]} 22. b4 {[%clk 0:01:33]}  b6 {[%clk 0:00:08]} 23. Nxf5 {[%clk 0:01:32]}  gxf5 {[%clk 0:00:07]} 24. Be7 {[%clk 0:01:32]}  Bf6 {[%clk 0:00:00]} 25. Bxd6 {[%clk 0:01:29]} 1-0

[Event "December 12 Early 2023"]
[Site "https://www.chess.com"]
[Date "2023.12.12"]
[Round "5"]
[White "Vlassov, Nikolai"]
[Black "Lopusiewicz, Piotr"]
[Result "1-0"]
[Board "101"]
[TimeControl "180+1"]
[WhiteFideId "4103360"]
[BlackFideId "1116029"]
[WhiteElo "2604"]
[BlackElo "2452"]
[WhiteTeam "FID"]
[BlackTeam "POL"]
[WhiteClock "0:00:22"]
[BlackClock "0:00:06"]

1. e4 {[%clk 0:02:59]}  e5 {[%clk 0:03:00]} 2. Bc4 {[%clk 0:02:58]}  Nf6 {[%clk 0:02:58]} 3. d3 {[%clk 0:02:58]}  Nc6 {[%clk 0:02:59]} 4. Nf3 {[%clk 0:02:58]}  Bc5 {[%clk 0:02:58]} 5. Bg5 {[%clk 0:02:57]}  h6 {[%clk 0:02:55]} 6. Bh4 {[%clk 0:02:58]}  d6 {[%clk 0:02:54]} 7. Nc3 {[%clk 0:02:57]}  a6 {[%clk 0:02:51]} 8. Nd5 {[%clk 0:02:57]}  Na5 {[%clk 0:02:33]} 9. Nxf6+ {[%clk 0:02:53]}  gxf6 {[%clk 0:02:31]} 10. Nd2 {[%clk 0:02:54]}  Nxc4 {[%clk 0:02:30]} 11. Nxc4 {[%clk 0:02:53]}  d5 {[%clk 0:02:21]} 12. exd5 {[%clk 0:02:34]}  Qxd5 {[%clk 0:02:21]} 13. O-O {[%clk 0:02:03]}  Rg8 {[%clk 0:02:20]} 14. g3 {[%clk 0:01:59]}  Bg4 {[%clk 0:02:14]} 15. Qd2 {[%clk 0:01:36]}  Bh3 {[%clk 0:01:55]} 16. Ne3 {[%clk 0:01:35]}  Bxe3 {[%clk 0:01:54]} 17. fxe3 {[%clk 0:01:35]}  Bxf1 {[%clk 0:01:54]} 18. Rxf1 {[%clk 0:01:35]}  O-O-O {[%clk 0:01:47]} 19. Bxf6 {[%clk 0:01:32]}  Rd7 {[%clk 0:01:37]} 20. b3 {[%clk 0:01:25]}  e4 {[%clk 0:01:31]} 21. d4 {[%clk 0:01:21]}  Rg6 {[%clk 0:01:14]} 22. c4 {[%clk 0:01:15]}  Qe6 {[%clk 0:01:08]} 23. Qf2 {[%clk 0:01:15]}  a5 {[%clk 0:01:03]} 24. Qf4 {[%clk 0:01:07]}  b6 {[%clk 0:00:53]} 25. d5 {[%clk 0:01:03]}  Qg4 {[%clk 0:00:50]} 26. Bd4 {[%clk 0:00:55]}  Qxf4 {[%clk 0:00:43]} 27. Rxf4 {[%clk 0:00:54]}  Kd8 {[%clk 0:00:41]} 28. Rxe4 {[%clk 0:00:53]}  Re7 {[%clk 0:00:39]} 29. Rf4 {[%clk 0:00:53]}  Kd7 {[%clk 0:00:38]} 30. Kf2 {[%clk 0:00:52]}  h5 {[%clk 0:00:38]} 31. Kf3 {[%clk 0:00:52]}  Kd6 {[%clk 0:00:29]} 32. e4 {[%clk 0:00:51]}  a4 {[%clk 0:00:25]} 33. e5+ {[%clk 0:00:49]}  Kd7 {[%clk 0:00:24]} 34. b4 {[%clk 0:00:49]}  f5 {[%clk 0:00:13]} 35. Rxf5 {[%clk 0:00:42]}  a3 {[%clk 0:00:12]} 36. c5 {[%clk 0:00:40]}  Rg4 {[%clk 0:00:10]} 37. c6+ {[%clk 0:00:34]}  Ke8 {[%clk 0:00:10]} 38. Rf4 {[%clk 0:00:32]}  Reg7 {[%clk 0:00:10]} 39. d6 {[%clk 0:00:31]}  Rxf4+ {[%clk 0:00:10]} 40. gxf4 {[%clk 0:00:31]}  h4 {[%clk 0:00:10]} 41. e6 {[%clk 0:00:24]}  Rg6 {[%clk 0:00:06]} 42. dxc7 {[%clk 0:00:22]} 1-0

[Event "December 12 Early 2023"]
[Site "https://www.chess.com"]
[Date "2023.12.12"]
[Round "5"]
[White "Tao, Sihan"]
[Black "Dilmukhametov, Artur"]
[Result "0-1"]
[Board "102"]
[TimeControl "180+1"]
[WhiteFideId "30982677"]
[BlackFideId "24179922"]
[WhiteElo "2602"]
[BlackElo "2449"]
[WhiteTeam "USA"]
[BlackTeam "RUS"]
[WhiteClock "0:02:25"]
[BlackClock "0:02:43"]

1. e4 {[%clk 0:03:00]}  c6 {[%clk 0:02:59]} 2. d4 {[%clk 0:02:59]}  d5 {[%clk 0:02:59]} 3. Nc3 {[%clk 0:03:00]}  dxe4 {[%clk 0:02:59]} 4. Nxe4 {[%clk 0:03:00]}  Bf5 {[%clk 0:03:00]} 5. Ng3 {[%clk 0:03:01]}  Bg6 {[%clk 0:03:00]} 6. h4 {[%clk 0:03:01]}  h6 {[%clk 0:03:01]} 7. Nf3 {[%clk 0:03:02]}  Nd7 {[%clk 0:03:01]} 8. h5 {[%clk 0:03:02]}  Bh7 {[%clk 0:03:01]} 9. Bd3 {[%clk 0:03:03]}  Bxd3 {[%clk 0:03:02]} 10. Qxd3 {[%clk 0:03:04]}  e6 {[%clk 0:03:02]} 11. Bd2 {[%clk 0:03:04]}  Ngf6 {[%clk 0:03:02]} 12. O-O-O {[%clk 0:03:05]}  Qc7 {[%clk 0:03:03]} 13. Ne4 {[%clk 0:03:05]}  Nxe4 {[%clk 0:03:02]} 14. Qxe4 {[%clk 0:03:05]}  Nf6 {[%clk 0:03:03]} 15. Qe2 {[%clk 0:03:06]}  Be7 {[%clk 0:03:03]} 16. g3 {[%clk 0:03:06]}  c5 {[%clk 0:02:59]} 17. Kb1 {[%clk 0:03:03]}  O-O {[%clk 0:02:53]} 18. Bf4 {[%clk 0:03:00]}  Qb6 {[%clk 0:02:48]} 19. Be3 {[%clk 0:02:42]}  Nd5 {[%clk 0:02:45]} 20. Ne5 {[%clk 0:02:25]}  Nc3+ {[%clk 0:02:43]} 0-1

[Event "December 12 Early 2023"]
[Site "https://www.chess.com"]
[Date "2023.12.12"]
[Round "5"]
[White "Dmitrenko, Viktor"]
[Black "Shubenkova, Veronika"]
[Result "1-0"]
[Board "105"]
[TimeControl "180+1"]
[WhiteFideId "14110270"]
[BlackFideId "44124040"]
[WhiteElo "2440"]
[BlackElo "2593"]
[WhiteTeam "UKR"]
[BlackTeam "RUS"]
[WhiteClock "0:00:29"]
[BlackClock "0:00:13"]

1. Nf3 {[%clk 0:02:04]}  d5 {[%clk 0:02:59]} 2. d4 {[%clk 0:02:03]}  e6 {[%clk 0:02:59]} 3. c4 {[%clk 0:02:02]}  f5 {[%clk 0:02:58]} 4. Nc3 {[%clk 0:02:00]}  Nf6 {[%clk 0:02:58]} 5. Bg5 {[%clk 0:01:58]}  c6 {[%clk 0:02:58]} 6. cxd5 {[%clk 0:01:56]}  exd5 {[%clk 0:02:58]} 7. e3 {[%clk 0:01:56]}  Be7 {[%clk 0:02:58]} 8. Bxf6 {[%clk 0:01:53]}  Bxf6 {[%clk 0:02:58]} 9. Bd3 {[%clk 0:01:54]}  O-O {[%clk 0:02:58]} 10. Qc2 {[%clk 0:01:53]}  Be7 {[%clk 0:02:44]} 11. O-O {[%clk 0:01:52]}  Bd6 {[%clk 0:02:44]} 12. g3 {[%clk 0:01:50]}  Qe7 {[%clk 0:02:44]} 13. a3 {[%clk 0:01:49]}  Be6 {[%clk 0:02:44]} 14. b4 {[%clk 0:01:48]}  a6 {[%clk 0:02:44]} 15. Na4 {[%clk 0:01:46]}  Nd7 {[%clk 0:02:44]} 16. Nc5 {[%clk 0:01:46]}  Nxc5 {[%clk 0:02:16]} 17. bxc5 {[%clk 0:01:43]}  Bc7 {[%clk 0:02:14]} 18. Rab1 {[%clk 0:01:43]}  Ra7 {[%clk 0:01:49]} 19. Kg2 {[%clk 0:01:28]}  g5 {[%clk 0:01:43]} 20. h4 {[%clk 0:01:23]}  gxh4 {[%clk 0:01:22]} 21. Nxh4 {[%clk 0:01:21]}  Qg5 {[%clk 0:01:18]} 22. f4 {[%clk 0:01:13]}  Qf6 {[%clk 0:01:13]} 23. Rh1 {[%clk 0:01:11]}  Rf7 {[%clk 0:01:12]} 24. Nf3 {[%clk 0:01:10]}  Rg7 {[%clk 0:01:11]} 25. Kf2 {[%clk 0:01:07]}  Ba5 {[%clk 0:00:59]} 26. Ne5 {[%clk 0:01:01]}  Ra8 {[%clk 0:00:52]} 27. Rh5 {[%clk 0:00:55]}  Rf8 {[%clk 0:00:50]} 28. Rbh1 {[%clk 0:00:53]}  Bc7 {[%clk 0:00:44]} 29. g4 {[%clk 0:00:52]}  Bxe5 {[%clk 0:00:36]} 30. dxe5 {[%clk 0:00:51]}  Qg6 {[%clk 0:00:35]} 31. Rg5 {[%clk 0:00:47]}  Qe8 {[%clk 0:00:20]} 32. Rxg7+ {[%clk 0:00:47]}  Kxg7 {[%clk 0:00:20]} 33. gxf5 {[%clk 0:00:47]}  Bc8 {[%clk 0:00:20]} 34. f6+ {[%clk 0:00:46]}  Kf7 {[%clk 0:00:20]} 35. Rxh7+ {[%clk 0:00:42]}  Kg8 {[%clk 0:00:20]} 36. Bg6 {[%clk 0:00:38]}  Qe6 {[%clk 0:00:17]} 37. Qe2 {[%clk 0:00:30]}  d4 {[%clk 0:00:14]} 38. Rg7+ {[%clk 0:00:29]}  Kh8 {[%clk 0:00:13]} 39. Qh5# {[%clk 0:00:29]} 1-0

[Event "December 12 Early 2023"]
[Site "https://www.chess.com"]
[Date "2023.12.12"]
[Round "5"]
[White "Manukian, Artak"]
[Black "Sahin, Sarp"]
[Result "1-0"]
[Board "106"]
[TimeControl "180+1"]
[WhiteFideId "13301373"]
[BlackFideId "51605066"]
[WhiteElo "2593"]
[BlackElo "2432"]
[WhiteTeam "ARM"]
[BlackTeam "TUR"]
[WhiteClock "0:00:01"]
[BlackClock "0:00:00"]

1. e4 {[%clk 0:03:00]}  c5 {[%clk 0:02:59]} 2. Nf3 {[%clk 0:03:00]}  e6 {[%clk 0:02:59]} 3. c3 {[%clk 0:03:01]}  d5 {[%clk 0:02:55]} 4. e5 {[%clk 0:03:01]}  d4 {[%clk 0:02:54]} 5. cxd4 {[%clk 0:03:00]}  cxd4 {[%clk 0:02:55]} 6. Bb5+ {[%clk 0:03:00]}  Nc6 {[%clk 0:02:53]} 7. Bxc6+ {[%clk 0:02:59]}  bxc6 {[%clk 0:02:53]} 8. Qa4 {[%clk 0:03:00]}  Ne7 {[%clk 0:02:43]} 9. Qxd4 {[%clk 0:02:57]}  Nd5 {[%clk 0:02:42]} 10. Nc3 {[%clk 0:02:54]}  Be7 {[%clk 0:02:38]} 11. O-O {[%clk 0:02:50]}  O-O {[%clk 0:02:37]} 12. Qg4 {[%clk 0:02:45]}  Rb8 {[%clk 0:02:33]} 13. d4 {[%clk 0:02:42]}  Kh8 {[%clk 0:02:31]} 14. h4 {[%clk 0:02:39]}  c5 {[%clk 0:02:22]} 15. dxc5 {[%clk 0:02:37]}  Bxc5 {[%clk 0:02:23]} 16. Ne4 {[%clk 0:02:37]}  Be7 {[%clk 0:02:20]} 17. Qh5 {[%clk 0:02:14]}  Qe8 {[%clk 0:02:00]} 18. Nd6 {[%clk 0:01:56]}  Bxd6 {[%clk 0:01:58]} 19. exd6 {[%clk 0:01:50]}  Ba6 {[%clk 0:01:56]} 20. Re1 {[%clk 0:01:46]}  Rd8 {[%clk 0:01:35]} 21. Ng5 {[%clk 0:01:41]}  Nf6 {[%clk 0:01:31]} 22. Qd1 {[%clk 0:01:39]}  Qc6 {[%clk 0:01:26]} 23. Bf4 {[%clk 0:01:37]}  Kg8 {[%clk 0:01:24]} 24. Rc1 {[%clk 0:01:35]}  Qb5 {[%clk 0:01:12]} 25. Re5 {[%clk 0:01:24]}  Qxb2 {[%clk 0:01:10]} 26. Ra5 {[%clk 0:01:21]}  Be2 {[%clk 0:01:02]} 27. Qc2 {[%clk 0:01:10]}  Qb4 {[%clk 0:00:55]} 28. Ra4 {[%clk 0:00:50]}  Qb5 {[%clk 0:00:51]} 29. Rxa7 {[%clk 0:00:35]}  h6 {[%clk 0:00:45]} 30. Ne4 {[%clk 0:00:28]}  Nd5 {[%clk 0:00:40]} 31. Nc3 {[%clk 0:00:20]}  Nxc3 {[%clk 0:00:34]} 32. Qxc3 {[%clk 0:00:21]}  Qb6 {[%clk 0:00:24]} 33. Qc7 {[%clk 0:00:13]}  Qb2 {[%clk 0:00:23]} 34. Be3 {[%clk 0:00:12]}  Qf6 {[%clk 0:00:22]} 35. Qe7 {[%clk 0:00:11]}  Qf5 {[%clk 0:00:19]} 36. d7 {[%clk 0:00:11]}  Qd3 {[%clk 0:00:18]} 37. Bc5 {[%clk 0:00:10]}  Qd2 {[%clk 0:00:14]} 38. Ba3 {[%clk 0:00:08]}  Rb8 {[%clk 0:00:07]} 39. Rac7 {[%clk 0:00:04]}  Rfd8 {[%clk 0:00:07]} 40. Rc8 {[%clk 0:00:02]}  Rbxc8 {[%clk 0:00:03]} 41. dxc8=Q {[%clk 0:00:01]}  Rxc8 {[%clk 0:00:02]} 42. Rxc8+ {[%clk 0:00:02]}  Kh7 {[%clk 0:00:03]} 43. Qb4 {[%clk 0:00:01]}  Qd1+ {[%clk 0:00:02]} 44. Kh2 {[%clk 0:00:02]}  Bd3 {[%clk 0:00:01]} 45. Qf4 {[%clk 0:00:01]}  Bf5 {[%clk 0:00:00]} 46. Bb2 {[%clk 0:00:01]} 1-0

[Event "December 12 Early 2023"]
[Site "https://www.chess.com"]
[Date "2023.12.12"]
[Round "5"]
[White "Kuzmin, Roman"]
[Black "Pham, Le Thao Nguyen"]
[Result "0-1"]
[Board "108"]
[TimeControl "180+1"]
[WhiteFideId "44134932"]
[BlackFideId "12401226"]
[WhiteElo "2580"]
[BlackElo "2514"]
[WhiteTeam "RUS"]
[BlackTeam "VIE"]
[WhiteClock "0:00:00"]
[BlackClock "0:00:04"]

1. e4 {[%clk 0:03:00]}  c6 {[%clk 0:02:59]} 2. d4 {[%clk 0:03:00]}  d5 {[%clk 0:02:59]} 3. Nc3 {[%clk 0:03:00]}  dxe4 {[%clk 0:02:59]} 4. Nxe4 {[%clk 0:03:01]}  Nf6 {[%clk 0:02:59]} 5. Nxf6+ {[%clk 0:03:01]}  exf6 {[%clk 0:03:00]} 6. c3 {[%clk 0:03:01]}  Qe7+ {[%clk 0:02:58]} 7. Be2 {[%clk 0:02:57]}  Be6 {[%clk 0:02:57]} 8. Be3 {[%clk 0:02:54]}  Qc7 {[%clk 0:02:56]} 9. Qc2 {[%clk 0:02:52]}  Bd6 {[%clk 0:02:53]} 10. Bd3 {[%clk 0:02:45]}  Nd7 {[%clk 0:02:51]} 11. Ne2 {[%clk 0:02:45]}  Nb6 {[%clk 0:02:50]} 12. O-O-O {[%clk 0:02:23]}  Nc4 {[%clk 0:02:40]} 13. Rhe1 {[%clk 0:01:43]}  b5 {[%clk 0:02:20]} 14. Bf5 {[%clk 0:01:23]}  Bxf5 {[%clk 0:01:53]} 15. Qxf5 {[%clk 0:01:22]}  O-O {[%clk 0:01:54]} 16. b3 {[%clk 0:01:05]}  Nxe3 {[%clk 0:01:40]} 17. fxe3 {[%clk 0:01:06]}  Rfe8 {[%clk 0:01:34]} 18. e4 {[%clk 0:01:04]}  a5 {[%clk 0:01:25]} 19. Kc2 {[%clk 0:00:56]}  b4 {[%clk 0:01:20]} 20. c4 {[%clk 0:00:57]}  a4 {[%clk 0:01:19]} 21. Nc1 {[%clk 0:00:37]}  c5 {[%clk 0:01:07]} 22. e5 {[%clk 0:00:31]}  fxe5 {[%clk 0:01:04]} 23. dxe5 {[%clk 0:00:32]}  Bxe5 {[%clk 0:01:02]} 24. Rd7 {[%clk 0:00:32]}  Qb8 {[%clk 0:00:56]} 25. Qxf7+ {[%clk 0:00:25]}  Kh8 {[%clk 0:00:57]} 26. Rb7 {[%clk 0:00:04]}  Qd6 {[%clk 0:00:51]} 27. Rd7 {[%clk 0:00:04]}  Qh6 {[%clk 0:00:26]} 28. Re7 {[%clk 0:00:04]}  Rf8 {[%clk 0:00:17]} 29. Qd5 {[%clk 0:00:03]}  Bd4 {[%clk 0:00:17]} 30. R7e2 {[%clk 0:00:01]}  Qg6+ {[%clk 0:00:13]} 31. Qe4 {[%clk 0:00:01]}  Qa6 {[%clk 0:00:13]} 32. Qd3 {[%clk 0:00:01]}  Qb7 {[%clk 0:00:12]} 33. Qe4 {[%clk 0:00:01]}  Qc7 {[%clk 0:00:11]} 34. Qe6 {[%clk 0:00:01]}  Qxh2 {[%clk 0:00:11]} 35. g4 {[%clk 0:00:01]}  Qh4 {[%clk 0:00:10]} 36. Qe4 {[%clk 0:00:01]}  Qg5 {[%clk 0:00:10]} 37. Rh1 {[%clk 0:00:01]}  h6 {[%clk 0:00:10]} 38. Rh5 {[%clk 0:00:02]}  Qf4 {[%clk 0:00:08]} 39. Qxf4 {[%clk 0:00:02]}  Rxf4 {[%clk 0:00:09]} 40. g5 {[%clk 0:00:03]}  Kh7 {[%clk 0:00:08]} 41. gxh6 {[%clk 0:00:03]}  gxh6 {[%clk 0:00:09]} 42. Re7+ {[%clk 0:00:03]}  Kg6 {[%clk 0:00:08]} 43. Rh2 {[%clk 0:00:04]}  Ra6 {[%clk 0:00:08]} 44. Nd3 {[%clk 0:00:02]}  axb3+ {[%clk 0:00:07]} 45. Kc1 {[%clk 0:00:01]}  Rf3 {[%clk 0:00:05]} 46. Nxc5 {[%clk 0:00:01]}  Bxc5 {[%clk 0:00:05]} 47. axb3 {[%clk 0:00:00]}  Bxe7 {[%clk 0:00:04]} 0-1

[Event "December 12 Early 2023"]
[Site "https://www.chess.com"]
[Date "2023.12.12"]
[Round "5"]
[White "Sari, Yasin"]
[Black "Bettalli, Francesco"]
[Result "0-1"]
[Board "110"]
[TimeControl "180+1"]
[WhiteFideId "6320902"]
[BlackFideId "2816453"]
[WhiteElo "2426"]
[BlackElo "2580"]
[WhiteTeam "TUR"]
[BlackTeam "ITA"]
[WhiteClock "0:00:05"]
[BlackClock "0:00:07"]

1. d4 {[%clk 0:03:00]}  g6 {[%clk 0:02:49]} 2. e4 {[%clk 0:02:59]}  c6 {[%clk 0:02:44]} 3. Nf3 {[%clk 0:02:55]}  d5 {[%clk 0:02:31]} 4. Nc3 {[%clk 0:02:53]}  Bg4 {[%clk 0:02:21]} 5. exd5 {[%clk 0:02:37]}  cxd5 {[%clk 0:02:20]} 6. h3 {[%clk 0:02:37]}  Bxf3 {[%clk 0:02:20]} 7. Qxf3 {[%clk 0:02:37]}  e6 {[%clk 0:02:21]} 8. Bd3 {[%clk 0:02:28]}  Nc6 {[%clk 0:02:20]} 9. Ne2 {[%clk 0:02:28]}  Bg7 {[%clk 0:02:20]} 10. c3 {[%clk 0:02:28]}  Nge7 {[%clk 0:02:20]} 11. O-O {[%clk 0:02:28]}  O-O {[%clk 0:02:21]} 12. h4 {[%clk 0:02:18]}  e5 {[%clk 0:01:44]} 13. dxe5 {[%clk 0:02:18]}  Nxe5 {[%clk 0:01:45]} 14. Qg3 {[%clk 0:02:19]}  Nxd3 {[%clk 0:01:41]} 15. Qxd3 {[%clk 0:02:20]}  Nc6 {[%clk 0:01:41]} 16. h5 {[%clk 0:02:13]}  Ne5 {[%clk 0:01:38]} 17. Qg3 {[%clk 0:02:10]}  Re8 {[%clk 0:01:34]} 18. Nd4 {[%clk 0:02:04]}  Nc4 {[%clk 0:01:26]} 19. Nf5 {[%clk 0:01:51]}  gxf5 {[%clk 0:01:21]} 20. h6 {[%clk 0:01:51]}  Qf6 {[%clk 0:01:21]} 21. hxg7 {[%clk 0:01:32]}  Re4 {[%clk 0:01:06]} 22. b3 {[%clk 0:00:55]}  Rg4 {[%clk 0:00:34]} 23. Qh3 {[%clk 0:00:54]}  Nd6 {[%clk 0:00:28]} 24. Be3 {[%clk 0:00:20]}  f4 {[%clk 0:00:21]} 25. Bd4 {[%clk 0:00:19]}  Qg6 {[%clk 0:00:22]} 26. Rfe1 {[%clk 0:00:11]}  Nf5 {[%clk 0:00:17]} 27. Re5 {[%clk 0:00:11]}  f3 {[%clk 0:00:14]} 28. g3 {[%clk 0:00:05]}  Nxg3 {[%clk 0:00:13]} 29. Kh2 {[%clk 0:00:03]}  Nf5 {[%clk 0:00:07]} 30. Rxf5 {[%clk 0:00:03]}  Qxf5 {[%clk 0:00:06]} 31. Re1 {[%clk 0:00:03]}  Rg2+ {[%clk 0:00:06]} 32. Qxg2 {[%clk 0:00:04]}  fxg2 {[%clk 0:00:06]} 33. Kxg2 {[%clk 0:00:05]}  h5 {[%clk 0:00:06]} 34. Rh1 {[%clk 0:00:03]}  f6 {[%clk 0:00:06]} 35. Rh3 {[%clk 0:00:03]}  Kxg7 {[%clk 0:00:06]} 36. Rg3+ {[%clk 0:00:03]}  Kh7 {[%clk 0:00:06]} 37. Rf3 {[%clk 0:00:04]}  Rg8+ {[%clk 0:00:06]} 38. Rg3 {[%clk 0:00:05]}  Rxg3+ {[%clk 0:00:06]} 39. fxg3 {[%clk 0:00:06]}  h4 {[%clk 0:00:06]} 40. g4 {[%clk 0:00:05]}  Qxg4+ {[%clk 0:00:07]} 41. Kf2 {[%clk 0:00:05]}  Qg3+ {[%clk 0:00:07]} 42. Ke2 {[%clk 0:00:05]}  f5 {[%clk 0:00:07]} 0-1

[Event "December 12 Early 2023"]
[Site "https://www.chess.com"]
[Date "2023.12.12"]
[Round "5"]
[White "Iskusnyh, Sergei"]
[Black "Leve, Nitai"]
[Result "1-0"]
[Board "111"]
[TimeControl "180+1"]
[WhiteFideId "4120027"]
[BlackFideId "2006898"]
[WhiteElo "2578"]
[BlackElo "2424"]
[WhiteTeam "RUS"]
[BlackTeam "USA"]
[WhiteClock "0:00:45"]
[BlackClock "0:00:01"]

1. d4 {[%clk 0:02:57]}  d5 {[%clk 0:02:44]} 2. c4 {[%clk 0:02:54]}  c6 {[%clk 0:02:36]} 3. Nf3 {[%clk 0:02:54]}  Nf6 {[%clk 0:02:27]} 4. e3 {[%clk 0:02:54]}  a6 {[%clk 0:02:27]} 5. Bd3 {[%clk 0:02:52]}  Bg4 {[%clk 0:02:24]} 6. Nbd2 {[%clk 0:02:51]}  e6 {[%clk 0:02:24]} 7. b3 {[%clk 0:02:49]}  b5 {[%clk 0:02:24]} 8. O-O {[%clk 0:02:45]}  Bd6 {[%clk 0:02:24]} 9. c5 {[%clk 0:02:42]}  Bc7 {[%clk 0:02:24]} 10. Bb2 {[%clk 0:02:41]}  Nbd7 {[%clk 0:02:23]} 11. Qc2 {[%clk 0:02:38]}  O-O {[%clk 0:01:48]} 12. Ne5 {[%clk 0:02:36]}  Nxe5 {[%clk 0:01:30]} 13. dxe5 {[%clk 0:02:33]}  Nd7 {[%clk 0:01:31]} 14. Bxh7+ {[%clk 0:02:31]}  Kh8 {[%clk 0:01:30]} 15. f4 {[%clk 0:02:30]}  Nxc5 {[%clk 0:01:10]} 16. b4 {[%clk 0:02:09]}  Na4 {[%clk 0:00:56]} 17. Bd4 {[%clk 0:02:08]}  Nb6 {[%clk 0:00:43]} 18. Bd3 {[%clk 0:01:59]}  Nc4 {[%clk 0:00:42]} 19. Nb3 {[%clk 0:01:59]}  Bb6 {[%clk 0:00:38]} 20. Nc5 {[%clk 0:01:50]}  a5 {[%clk 0:00:36]} 21. a3 {[%clk 0:01:48]}  Qh4 {[%clk 0:00:20]} 22. Bxc4 {[%clk 0:01:01]}  bxc4 {[%clk 0:00:15]} 23. Nxe6 {[%clk 0:01:00]}  fxe6 {[%clk 0:00:14]} 24. Bxb6 {[%clk 0:01:00]}  Rf5 {[%clk 0:00:11]} 25. bxa5 {[%clk 0:00:58]}  Rh5 {[%clk 0:00:10]} 26. g3 {[%clk 0:00:58]}  Qe7 {[%clk 0:00:07]} 27. Qd2 {[%clk 0:00:54]}  Bf5 {[%clk 0:00:07]} 28. Qb4 {[%clk 0:00:54]}  Qf7 {[%clk 0:00:07]} 29. Rf2 {[%clk 0:00:54]}  Be4 {[%clk 0:00:07]} 30. Bc5 {[%clk 0:00:52]}  Qg6 {[%clk 0:00:07]} 31. Rb2 {[%clk 0:00:49]}  Kh7 {[%clk 0:00:06]} 32. Qe1 {[%clk 0:00:48]}  Rh8 {[%clk 0:00:06]} 33. a6 {[%clk 0:00:48]}  Qg4 {[%clk 0:00:06]} 34. Raa2 {[%clk 0:00:48]}  Qf3 {[%clk 0:00:06]} 35. Rg2 {[%clk 0:00:46]}  Kg6 {[%clk 0:00:05]} 36. a7 {[%clk 0:00:46]}  Rxh2 {[%clk 0:00:04]} 37. Rxh2 {[%clk 0:00:44]}  Qh1+ {[%clk 0:00:03]} 38. Rxh1 {[%clk 0:00:44]}  Rxh1+ {[%clk 0:00:04]} 39. Kf2 {[%clk 0:00:44]}  Rh2+ {[%clk 0:00:04]} 40. Kf1 {[%clk 0:00:44]}  Rh1+ {[%clk 0:00:02]} 41. Ke2 {[%clk 0:00:45]}  Rh2+ {[%clk 0:00:03]} 42. Qf2 {[%clk 0:00:45]}  Bd3+ {[%clk 0:00:03]} 43. Ke1 {[%clk 0:00:44]}  Rh1+ {[%clk 0:00:01]} 44. Kd2 {[%clk 0:00:45]} 1-0